lending/lending_fUSD_20260124
["ID","MTS","AMOUNT","RATE_DAILY","PERIOD"]
[403183593,1769253797748,-251.68783065,0.00012178,2]
[403183594,1769253801226,-185.90449884,0.00012177,2]
[403183596,1769253936075,5272.46458787,0.0001,2]
[403183597,1769253959737,340.69057712,8e-05,2]
[403183598,1769253959759,5809.17516499,8e-05,2]
[403183599,1769253959781,4187.61963429,8e-05,2]
[403183600,1769253963637,1621.5555307,0.00011,2]
[403183601,1769253963663,5809.17516499,0.00011,2]
[403183602,1769253963687,1998.61142497,0.00011,2]
[403183603,1769254028742,205.0,9.8e-05,2]
[403183604,1769254030856,423.28093144,0.00012076,2]
[403183605,1769254041495,222.53705238,0.00012076,2]
[403183606,1769254103473,2736.91287871,0.0001,2]
[403183607,1769254106581,5533.0,0.000123,5]
[403183608,1769254106645,222.83287749,0.000107,2]
[403183609,1769254106666,45.56976693,0.000107,2]
[403183610,1769254106702,5533.0,0.000121,3]
[403183611,1769254106759,5763.60539806,0.000119,2]
[403183612,1769254106780,5809.17516499,0.000119,2]
[403183613,1769254106801,5809.17516499,0.000119,2]
[403183614,1769254106822,5809.17516499,0.000119,2]
[403183615,1769254106843,5809.17516499,0.000119,2]
[403183616,1769254106866,73640.69394198,0.000119,2]
[403183617,1769254113221,6366.8470492,0.0001,2]
[403183618,1769254113246,5672.44295439,0.0001,2]
[403183619,1769254113870,-150.0,0.00012176,2]
[403183620,1769254113898,-300.0,0.00012176,2]
[403183621,1769254113929,-300.0,0.00012176,2]
[403183622,1769254113957,-300.0,0.00012176,2]
[403183623,1769254113989,-500.0,0.00012177,2]
[403183624,1769254114022,-420.35772741,0.00012177,2]
[403183625,1769254114055,-500.0,0.00012177,2]
[403183626,1769254114086,-500.0,0.00012177,2]
[403183627,1769254114117,-500.0,0.00012177,2]
[403183628,1769254114150,-500.0,0.00012177,2]
[403183629,1769254114182,-500.0,0.00012177,2]
[403183630,1769254114215,-500.0,0.00012177,2]
[403183631,1769254114386,-300.0,0.00012177,2]
[403183632,1769254114418,-300.0,0.00012177,2]
[403183633,1769254114449,-300.0,0.00012177,2]
[403183634,1769254114477,-1200.0,0.00012177,2]
[403183635,1769254114506,-354.71571822,0.00012177,2]
[403183636,1769254114536,-488.01442766,0.00012177,2]
[403183637,1769254114566,-410.19451088,0.00012177,2]
[403183638,1769254114595,-500.0,0.00012177,2]
[403183639,1769254114623,-500.0,0.00012177,2]
[403183640,1769254114651,-500.0,0.00012177,2]
[403183641,1769254114679,-108.25292718,0.00012177,2]
[403183642,1769254114762,-77.65483212,0.00012177,2]
[403183643,1769254115163,-71.28011752,0.00012178,2]
[403183644,1769254115181,-77.65483212,0.00012178,2]
[403183645,1769254115479,-9844.70033576,0.00012178,2]
[403183646,1769254115501,-10000.01,0.00012178,2]
[403183647,1769254115515,-10000.01,0.00012178,2]
[403183648,1769254115541,-10000.01,0.00012178,2]
[403183649,1769254119857,-10000.01,0.00012178,2]
[403183650,1769254119960,-10000.01,0.00012178,2]
[403183651,1769254120071,-10000.01,0.00012178,2]
[403183652,1769254120204,-2997.2082222,0.00012178,2]
[403183653,1769254120233,-4005.5935556,0.00012178,2]
[403183654,1769254120513,-500.0,0.00012178,2]
[403183655,1769254120551,-9000.01,0.00012178,2]
[403183656,1769254120636,-901.74964359,0.00012178,2]
[403183657,1769254120664,-1393.7793976,0.00012178,2]
[403183658,1769254120692,-479.92931923,0.00012178,2]
[403183659,1769254120719,-1000.0,0.00012277,2]
[403183660,1769254120747,-317.18990871,0.00012278,2]
[403183661,1769254120775,-200.0,0.00012278,2]
[403183662,1769254120803,-500.0,0.00012278,2]
[403183663,1769254120932,-414.71346174,0.00012278,2]
[403183664,1769254145138,-85.28653826,0.00012278,2]
[403183665,1769254145160,-500.0,0.00012278,2]
[403183666,1769254145182,-200.49465342,0.00012278,2]
[403183667,1769254168182,5533.0,0.000122,5]
[403183668,1769254168536,4811.00823108,0.00012,3]
[403183669,1769254168561,721.99176892,0.00012,3]
[403183683,1769254232140,-1200.0,0.00012077,2]
[403183684,1769254232149,-150.0,0.00012077,2]
[403183685,1769254232159,-300.0,0.00012077,2]
[403183686,1769254232168,-26409.54387592,0.00012078,2]
[403183687,1769254232184,-18839.39208705,0.00012078,2]
[403183688,1769254232195,-2255.84924183,0.00012078,2]
[403183689,1769254232206,-999.0,0.00012078,2]
[403183690,1769254232220,-395.00000005,0.00012078,2]
[403183691,1769254232233,-626.80201222,0.00012078,2]
[403183692,1769254232243,-589.68154739,0.00012078,2]
[403183694,1769254232254,-1388.91954942,0.00012078,2]
[403183696,1769254232264,-2345.02498503,0.00012078,2]
[403183710,1769254237975,-588.0,0.00012078,2]
[403183711,1769254238080,-825.89185212,0.00012078,2]
[403183716,1769254240016,-944736.89484897,0.00012078,2]
[403183717,1769254240027,-249.0,0.00012078,2]
[403183718,1769254240036,-9430.31224467,0.00012078,2]
[403183719,1769254240047,-5132.71234045,0.00012178,2]
[403183720,1769254240057,-388.27789473,0.00012178,2]
[403183721,1769254240067,-299.50534658,0.00012278,2]
[403183722,1769254240086,-500.0,0.00012278,2]
[403183723,1769254240098,-500.0,0.00012278,2]
[403183724,1769254240107,-500.0,0.00012278,2]
[403183725,1769254240117,-500.0,0.00012278,2]
[403183726,1769254240127,-500.0,0.00012278,2]
[403183727,1769254240136,-500.0,0.00012278,2]
[403183728,1769254240146,-500.0,0.00012278,2]
[403183729,1769254240155,-618.70210207,0.00012278,2]
[403183730,1769254240165,-200.0,0.00012278,2]
[403183731,1769254240175,-151.0,0.00012278,2]
[403183732,1769254240184,-151.0,0.00012278,2]
[403183733,1769254240194,-151.0,0.00012278,2]
[403183734,1769254240204,-151.0,0.00012278,2]
[403183735,1769254240214,-151.0,0.00012278,2]
[403183736,1769254240223,-151.0,0.00012278,2]
[403183737,1769254240233,-151.0,0.00012278,2]
[403183738,1769254240243,-151.0,0.00012278,2]
[403183739,1769254240252,-151.0,0.00012278,2]
[403183740,1769254240262,-151.0,0.00012278,2]
[403183741,1769254240271,-151.0,0.00012278,2]
[403183742,1769254240281,-500.0,0.00012278,2]
[403183743,1769254240290,-500.0,0.00012278,2]
[403183744,1769254240300,-500.0,0.00012278,2]
[403183745,1769254240309,-500.0,0.00012278,2]
[403183746,1769254240320,-500.0,0.00012278,2]
[403183747,1769254240329,-500.0,0.00012278,2]
[403183748,1769254240338,-500.0,0.00012278,2]
[403183749,1769254240347,-500.0,0.00012278,2]
[403183750,1769254240357,-500.0,0.00012278,2]
[403183751,1769254240366,-500.0,0.00012278,2]
[403183752,1769254240375,-500.0,0.00012278,2]
[403183753,1769254240384,-300.0,0.00012278,2]
[403183755,1769254240393,-157.99542452,0.00012278,2]
[403183757,1769254240403,-157.99542452,0.00012278,2]
[403183759,1769254240412,-200.0,0.00012278,2]
[403183760,1769254240421,-300.0,0.00012322,2]
[403183761,1769254240430,-448.16559277,0.00012322,2]
[403183762,1769254240444,-1112.93597017,0.00012378,2]
[403183763,1769254240453,-200.0,0.00012401,2]
[403183764,1769254240463,-200.0,0.00012525,2]
[403183765,1769254240475,-854.43,0.00012525,2]
[403183766,1769254240484,-9999.99,0.00012525,2]
[403183767,1769254240494,-1841.2,0.0001256,2]
[403183768,1769254240504,-206.58,0.00012593,2]
[403183769,1769254240515,-200.0,0.0001265,2]
[403183770,1769254240524,-500.0,0.00012721,2]
[403183771,1769254240534,-500.0,0.00012721,2]
[403183772,1769254240544,-500.0,0.00012721,2]
[403183773,1769254240554,-500.0,0.00012721,2]
[403183774,1769254240564,-150.0,0.00012721,2]
[403183775,1769254240573,-150.0,0.00012721,2]
[403183776,1769254240583,-9430.31224459,0.00012725,2]
[403183777,1769254240592,-238.51438018,0.00012725,2]
[403183778,1769254240601,-529.0,0.00012761,2]
[403183779,1769254240611,-408.0,0.00012761,2]
[403183780,1769254240620,-500.0,0.00012776,2]
[403183781,1769254240629,-500.0,0.00012776,2]
[403183782,1769254240642,-500.0,0.00012776,2]
[403183783,1769254240652,-500.0,0.00012776,2]
[403183784,1769254240663,-327.0,0.00012787,2]
[403183785,1769254240673,-5132.71234036,0.00012814,2]
[403183786,1769254240684,-200.0,0.00012826,2]
[403183787,1769254240695,-500.0,0.00012831,2]
[403183788,1769254240707,-500.0,0.00012831,2]
[403183789,1769254240718,-500.0,0.00012831,2]
[403183790,1769254240729,-493.25248034,0.00012831,2]
[403183791,1769254240741,-1500.0,0.00012877,2]
[403183792,1769254240751,-308.7610726,0.00012885,2]
[403183793,1769254240762,-500.0,0.00012885,2]
[403183794,1769254240772,-500.0,0.00012885,2]
[403183795,1769254240783,-165.94,0.00012916,2]
[403183796,1769254240792,-248.51907339,0.0001294,2]
[403183797,1769254240802,-402.81706826,0.0001294,2]
[403183798,1769254240811,-209.84691115,0.00012995,2]
[403183799,1769254240821,-194.76697243,0.00012995,2]
[403183800,1769254240834,-3824.42660411,0.0001305,2]
[403183801,1769254240844,-328.26756562,0.00013125,2]
[403183802,1769254240855,-255.0,0.00013163,2]
[403183803,1769254240865,-150.0,0.00013176,2]
[403183804,1769254240875,-9351.13,0.00013189,2]
[403183805,1769254240887,-227.21,0.000132,2]
[403183806,1769254240897,-215.96483373,0.00013231,2]
[403183807,1769254240907,-251.35617577,0.00013231,2]
[403183808,1769254240916,-150.0,0.00013231,2]
[403183809,1769254240927,-150.0,0.00013231,2]
[403183810,1769254240937,-200.0,0.00013231,2]
[403183811,1769254240947,-420.0,0.00013256,2]
[403183812,1769254240956,-1680.0,0.00013284,2]
[403183813,1769254240966,-150.0,0.00013286,2]
[403183814,1769254240975,-205.41720599,0.00013286,2]
[403183815,1769254240986,-279.80866145,0.00013341,2]
[403183816,1769254240997,-165.57934007,0.0001335,2]
[403183817,1769254241008,-9430.31224459,0.00013372,2]
[403183818,1769254241021,-246.52406605,0.00013374,2]
[403183819,1769254241031,-150.08724192,0.00013394,2]
[403183820,1769254241043,-500.0,0.00013394,2]
[403183821,1769254241053,-250.0,0.00013394,2]
[403183822,1769254241063,-194.82973596,0.00013394,2]
[403183823,1769254241073,-300.0,0.00013394,2]
[403183824,1769254241083,-250.0,0.00013395,2]
[403183825,1769254241093,-150.0,0.00013425,2]
[403183826,1769254241103,-150.0,0.00013425,2]
[403183827,1769254241113,-200.85753101,0.00013425,2]
[403183828,1769254241123,-150.0,0.00013425,2]
[403183829,1769254241133,-150.0,0.00013425,2]
[403183830,1769254241143,-150.0,0.00013425,2]
[403183831,1769254241152,-150.0,0.00013425,2]
[403183832,1769254241162,-150.0,0.00013425,2]
[403183833,1769254241172,-500.0,0.00013425,2]
[403183834,1769254241183,-2941.14,0.00013443,2]
[403183835,1769254241193,-500.0,0.00013445,2]
[403183836,1769254241206,-5132.71234036,0.0001345,2]
[403183837,1769254241216,-150.0,0.0001348,2]
[403183838,1769254241226,-175.63030324,0.0001348,2]
[403183839,1769254241236,-150.0,0.0001348,2]
[403183840,1769254241246,-150.0,0.0001348,2]
[403183841,1769254241256,-500.0,0.0001348,2]
[403183842,1769254241266,-300.0,0.00013505,2]
[403183843,1769254241277,-250.0,0.00013505,2]
[403183844,1769254241288,-150.0,0.00013535,2]
[403183845,1769254241298,-150.0,0.00013535,2]
[403183846,1769254241308,-200.0,0.00013535,2]
[403183847,1769254241317,-500.0,0.00013535,2]
[403183848,1769254241327,-4867.9,0.00013572,2]
[403183849,1769254241339,-238.51438012,0.00013588,2]
[403183850,1769254241349,-200.0,0.00013589,2]
[403183851,1769254241359,-150.0,0.00013589,2]
[403183852,1769254241369,-500.0,0.00013589,2]
[403183853,1769254241379,-290.22964713,0.00013644,2]
[403183854,1769254241389,-500.0,0.00013644,2]
[403183855,1769254241400,-500.0,0.00013698,2]
[403183856,1769254241410,-500.0,0.00013698,2]
[403183857,1769254241421,-500.0,0.00013698,2]
[403183858,1769254241432,-500.0,0.00013698,2]
[403183859,1769254241442,-500.0,0.00013698,2]
[403183860,1769254241453,-500.0,0.00013698,2]
[403183861,1769254241466,-500.0,0.00013698,2]
[403183862,1769254241475,-365.7708818,0.00013699,2]
[403183863,1769254241485,-500.0,0.00013699,2]
[403183864,1769254241495,-500.0,0.00013699,2]
[403183865,1769254241507,-513.25535788,0.00013699,2]
[403183866,1769254241519,-500.0,0.00013699,2]
[403183867,1769254241531,-500.0,0.00013699,2]
[403183868,1769254241542,-500.0,0.00013699,2]
[403183869,1769254241551,-500.0,0.00013699,2]
[403183870,1769254241561,-209.84691115,0.00013813,2]
[403183871,1769254241570,-194.76697243,0.00013813,2]
[403183872,1769254241580,-9430.31224459,0.00014019,2]
[403183873,1769254241591,-5132.71234036,0.00014085,2]
[403183874,1769254241601,-500.0,0.00014154,2]
[403183875,1769254241610,-200.0,0.00014197,2]
[403183876,1769254241623,-433.0,0.00014347,2]
[403183877,1769254241633,-1194.86,0.00014373,2]
[403183878,1769254241642,-578.20924308,0.00014373,2]
[403183879,1769254241651,-250.0,0.00014373,2]
[403183880,1769254241661,-250.0,0.00014373,2]
[403183881,1769254241671,-250.0,0.00014373,2]
[403183882,1769254241681,-263.33008425,0.00014373,2]
[403183883,1769254241690,-250.0,0.00014373,2]
[403183884,1769254241699,-250.0,0.00014373,2]
[403183885,1769254241709,-250.0,0.00014373,2]
[403183886,1769254241719,-250.0,0.00014373,2]
[403183887,1769254241729,-250.0,0.00014373,2]
[403183888,1769254241739,-250.0,0.00014373,2]
[403183889,1769254241750,-250.0,0.00014373,2]
[403183890,1769254241759,-250.0,0.00014373,2]
[403183891,1769254241769,-743.50770149,0.00014373,2]
[403183892,1769254241778,-250.0,0.00014373,2]
[403183893,1769254241788,-250.0,0.00014373,2]
[403183894,1769254241798,-174.61919141,0.00014373,2]
[403183895,1769254241808,-721.12765535,0.00014373,2]
[403183896,1769254241818,-250.0,0.00014373,2]
[403183897,1769254241827,-250.0,0.00014373,2]
[403183898,1769254241837,-250.0,0.00014373,2]
[403183899,1769254241846,-250.0,0.00014373,2]
[403183900,1769254241856,-250.0,0.00014373,2]
[403183901,1769254241867,-266.11006595,0.00014373,2]
[403183902,1769254241877,-151.0,0.00014373,2]
[403183903,1769254241888,-500.0,0.00014373,2]
[403183904,1769254241899,-151.0,0.00014373,2]
[403183905,1769254241910,-500.0,0.00014373,2]
[403183906,1769254241920,-151.0,0.00014373,2]
[403183907,1769254241930,-500.0,0.00014373,2]
[403183908,1769254241940,-151.0,0.00014373,2]
[403183909,1769254241951,-500.0,0.00014373,2]
[403183910,1769254241961,-151.0,0.00014373,2]
[403183911,1769254241971,-500.0,0.00014373,2]
[403183912,1769254241982,-151.0,0.00014373,2]
[403183913,1769254241993,-500.0,0.00014373,2]
[403183914,1769254242003,-151.0,0.00014373,2]
[403183915,1769254242013,-500.0,0.00014373,2]
[403183916,1769254242022,-151.0,0.00014373,2]
[403183917,1769254242032,-500.0,0.00014373,2]
[403183918,1769254242042,-151.0,0.00014373,2]
[403183919,1769254242052,-500.0,0.00014373,2]
[403183920,1769254242062,-151.0,0.00014373,2]
[403183921,1769254242072,-500.0,0.00014373,2]
[403183922,1769254242082,-151.0,0.00014373,2]
[403183923,1769254242091,-500.0,0.00014373,2]
[403183924,1769254242102,-500.0,0.00014373,2]
[403183925,1769254242112,-250.0,0.00014373,2]
[403183926,1769254242121,-250.0,0.00014373,2]
[403183927,1769254242131,-500.0,0.00014373,2]
[403183928,1769254242141,-322.6107,0.00014373,2]
[403183929,1769254242151,-209.40437684,0.00014373,2]
[403183930,1769254242161,-250.0,0.00014373,2]
[403183931,1769254242170,-500.0,0.00014373,2]
[403183932,1769254242180,-250.0,0.00014373,2]
[403183933,1769254242190,-250.0,0.00014373,2]
[403183934,1769254242200,-500.0,0.00014373,2]
[403183935,1769254242209,-250.0,0.00014373,2]
[403183936,1769254242218,-500.0,0.00014373,2]
[403183937,1769254242229,-250.0,0.00014373,2]
[403183938,1769254242239,-500.0,0.00014373,2]
[403183939,1769254242252,-250.0,0.00014373,2]
[403183940,1769254242262,-500.0,0.00014373,2]
[403183941,1769254242272,-250.0,0.00014373,2]
[403183942,1769254242282,-500.0,0.00014373,2]
[403183943,1769254242291,-250.0,0.00014373,2]
[403183944,1769254242301,-500.0,0.00014373,2]
[403183945,1769254242311,-250.0,0.00014373,2]
[403183946,1769254242321,-500.0,0.00014373,2]
[403183947,1769254242332,-500.0,0.00014373,2]
[403183948,1769254242342,-500.0,0.00014373,2]
[403183949,1769254242351,-500.0,0.00014373,2]
[403183950,1769254242362,-854.2589148,0.00014373,2]
[403183951,1769254242371,-500.0,0.00014373,2]
[403183952,1769254242380,-500.0,0.00014373,2]
[403183953,1769254242389,-500.0,0.00014373,2]
[403183954,1769254242399,-500.0,0.00014373,2]
[403183955,1769254242408,-500.0,0.00014373,2]
[403183956,1769254242417,-500.0,0.00014373,2]
[403183957,1769254242427,-500.0,0.00014373,2]
[403183958,1769254242436,-500.0,0.00014373,2]
[403183959,1769254242445,-500.0,0.00014373,2]
[403183960,1769254242455,-500.0,0.00014373,2]
[403183961,1769254242466,-500.0,0.00014373,2]
[403183962,1769254242477,-500.0,0.00014373,2]
[403183963,1769254242487,-500.0,0.00014373,2]
[403183964,1769254242496,-500.0,0.00014373,2]
[403183965,1769254242506,-500.0,0.00014373,2]
[403183966,1769254242516,-500.0,0.00014373,2]
[403183967,1769254242525,-500.0,0.00014373,2]
[403183968,1769254242534,-500.0,0.00014373,2]
[403183969,1769254242546,-500.0,0.00014373,2]
[403183970,1769254242555,-500.0,0.00014373,2]
[403183971,1769254242564,-3730.39828202,0.0001439,2]
[403183972,1769254242573,-238.51438012,0.0001445,2]
[403183973,1769254242583,-214.96623226,0.00014494,2]
[403183974,1769254242592,-182.74,0.00014504,2]
[403183975,1769254242601,-150.99,0.00014504,2]
[403183976,1769254242610,-37000.92,0.00014504,2]
[403183977,1769254242619,-9999.99,0.00014504,2]
[403183978,1769254242629,-2351.0,0.00014613,2]
[403183979,1769254242638,-209.84691115,0.0001463,2]
[403183980,1769254242647,-194.76697243,0.0001463,2]
[403183981,1769254242657,-1194.86,0.00014647,2]
[403183982,1769254242666,-9430.31224459,0.00014666,2]
[403183983,1769254242677,-151.0,0.00014695,2]
[403183985,1769254242687,-151.0,0.00014706,2]
[403183987,1769254242697,-152.0,0.00014714,3]
[403183988,1769254242707,-151.0,0.00014716,2]
[403183989,1769254242718,-5132.71234036,0.00014721,2]
[403183990,1769254242727,-252.37998978,0.00014892,2]
[403183991,1769254242738,-341.4708,0.00014892,2]
[403183992,1769254242748,-1194.86,0.00014921,2]
[403183993,1769254242758,-323.07684382,0.00014921,2]
[403183995,1769254242769,-181.08010149,0.00014921,2]
[403183997,1769254242780,-217.15233878,0.00014921,2]
[403183999,1769254242790,-885.86649465,0.00014921,2]
[403184001,1769254242799,-6210.2490806,0.00015,2]
[403184003,1769254242809,-10564.84740664,0.00015,2]
[403184005,1769254242820,-388.27789472,0.00015034,2]
[403184007,1769254242829,-165.94,0.00015047,2]
[403184009,1769254242839,-152.0,0.00015114,4]
[403184011,1769254242850,-2098.83,0.00015127,2]
[403184013,1769254242860,-1194.86,0.00015195,2]
[403184015,1769254242870,-500.0,0.00015246,2]
[403184017,1769254242879,-207.26,0.00015246,2]
[403184019,1769254242888,-9430.31224459,0.00015312,2]
[403184021,1769254242898,-238.51438012,0.00015313,2]
[403184022,1769254242907,-5132.71234036,0.00015357,2]
[403184024,1769254242917,-508.06724516,0.000154,2]
[403184026,1769254242926,-200.0,0.00015421,2]
[403184028,1769254242936,-209.84691115,0.00015448,2]
[403184029,1769254242946,-194.76697243,0.00015448,2]
[403184031,1769254242955,-1194.86,0.00015469,2]
[403184032,1769254242964,-187.78006525,0.00015469,2]
[403184033,1769254242973,-225.18697532,0.00015469,2]
[403184034,1769254242983,-152.0,0.00015513,5]
[403184035,1769254242993,-500.0,0.00015589,2]
[403184036,1769254243002,-276.0,0.00015639,2]
[403184037,1769254243011,-707.51,0.00015681,2]
[403184038,1769254243021,-334.5472959,0.00015742,2]
[403184039,1769254243032,-1194.86,0.00015743,2]
[403184040,1769254243043,-193.38072693,0.00015807,2]
[403184041,1769254243053,-500.0,0.00015873,2]
[403184042,1769254243062,-500.0,0.00015873,2]
[403184043,1769254243071,-500.0,0.00015873,2]
[403184044,1769254243080,-502.29619989,0.00015873,2]
[403184045,1769254243090,-500.0,0.00015873,2]
[403184046,1769254243099,-500.0,0.00015873,2]
[403184047,1769254243108,-500.0,0.00015873,2]
[403184048,1769254243118,-500.0,0.00015873,2]
[403184049,1769254243127,-500.0,0.00015873,2]
[403184050,1769254243137,-500.0,0.00015873,2]
[403184051,1769254243146,-500.0,0.00015873,2]
[403184052,1769254243155,-500.0,0.00015873,2]
[403184053,1769254243165,-500.0,0.00015873,2]
[403184054,1769254243175,-545.47745705,0.00015873,2]
[403184055,1769254243185,-500.0,0.00015873,2]
[403184056,1769254243195,-501.64063566,0.00015873,2]
[403184057,1769254243204,-313.95514595,0.00015873,2]
[403184058,1769254243214,-166.08381347,0.00015873,2]
[403184059,1769254243223,-500.0,0.00015873,2]
[403184060,1769254243232,-500.0,0.00015873,2]
[403184061,1769254243242,-501.00143477,0.00015873,2]
[403184062,1769254243251,-500.0,0.00015873,2]
[403184063,1769254243263,-500.0,0.00015873,2]
[403184064,1769254243273,-500.0,0.00015873,2]
[403184065,1769254243283,-501.35548304,0.00015873,2]
[403184066,1769254243293,-500.0,0.00015873,2]
[403184067,1769254243305,-152.0,0.00015913,6]
[403184068,1769254243315,-250.0,0.00015958,2]
[403184069,1769254243325,-9430.31224459,0.00015959,2]
[403184070,1769254243334,-635.76080296,0.0001596,2]
[403184071,1769254243343,-5132.71234036,0.00015993,2]
[403184072,1769254243352,-1194.86,0.00016017,2]
[403184073,1769254243361,-194.72792766,0.00016017,2]
[403184074,1769254243371,-181.14462682,0.00016017,2]
[403184075,1769254243380,-3292.0,0.00016074,2]
[403184076,1769254243390,-207.26,0.00016093,2]
[403184077,1769254243399,-196.02,0.00016097,2]
[403184078,1769254243408,-238.51438012,0.00016175,2]
[403184079,1769254243418,-3158.28185396,0.000162,5]
[403184080,1769254243426,-209.84691115,0.00016265,2]
[403184081,1769254243435,-194.76697243,0.00016265,2]
[403184082,1769254243445,-1194.92,0.00016291,2]
[403184083,1769254243456,-152.0,0.00016313,7]
[403184084,1769254243470,-500.0,0.00016356,2]
[403184085,1769254243482,-500.0,0.00016356,2]
[403184086,1769254243493,-1005.95943746,0.00016421,2]
[403184087,1769254243504,-1097.63046091,0.00016421,2]
[403184088,1769254243513,-502.78879497,0.00016421,2]
[403184089,1769254243522,-1001.80734067,0.00016421,2]
[403184090,1769254243531,-1068.24864212,0.00016421,2]
[403184091,1769254243541,-170.62003131,0.00016421,2]
[403184092,1769254243551,-1000.0,0.00016421,2]
[403184093,1769254243560,-1000.0,0.00016421,2]
[403184094,1769254243569,-292.86388149,0.00016421,2]
[403184095,1769254243578,-502.29589006,0.00016421,2]
[403184096,1769254243587,-1000.0,0.00016421,2]
[403184097,1769254243596,-1000.0,0.00016421,2]
[403184098,1769254243606,-1000.0,0.00016421,2]
[403184099,1769254243614,-502.42566729,0.00016421,2]
[403184100,1769254243624,-1000.0,0.00016421,2]
[403184101,1769254243633,-502.47348302,0.00016421,2]
[403184102,1769254243642,-1000.0,0.00016421,2]
[403184103,1769254243651,-1000.0,0.00016421,2]
[403184104,1769254243660,-1000.0,0.00016421,2]
[403184105,1769254243669,-500.0,0.00016438,2]
[403184106,1769254243678,-500.0,0.00016438,2]
[403184107,1769254243687,-500.0,0.00016438,2]
[403184108,1769254243696,-500.0,0.00016438,2]
[403184109,1769254243705,-500.0,0.00016438,2]
[403184110,1769254243714,-500.0,0.00016438,2]
[403184111,1769254243724,-500.0,0.00016438,2]
[403184112,1769254243733,-500.0,0.00016438,2]
[403184113,1769254243742,-500.0,0.00016438,2]
[403184114,1769254243751,-500.0,0.00016438,2]
[403184115,1769254243760,-255.42448321,0.00016438,2]
[403184116,1769254243769,-500.0,0.00016438,2]
[403184117,1769254243778,-3012.0,0.00016438,2]
[403184118,1769254243787,-151.0,0.00016438,2]
[403184119,1769254243797,-165.24,0.0001644,2]
[403184120,1769254243806,-502.0,0.00016521,2]
[403184121,1769254243815,-201.93286099,0.00016565,2]
[403184122,1769254243824,-5132.71234036,0.00016628,2]
[403184123,1769254243834,-500.0,0.00016651,2]
[403184124,1769254243843,-152.0,0.00016712,8]
[403184125,1769254243852,-166.61,0.00016712,2]
[403184126,1769254243861,-152.88,0.00016861,2]
[403184127,1769254243870,-250.0,0.00016868,2]
[403184128,1769254243879,-250.0,0.00016868,2]
[403184129,1769254243889,-250.0,0.00016868,2]
[403184130,1769254243898,-250.0,0.00016868,2]
[403184131,1769254243908,-250.0,0.00016868,2]
[403184132,1769254243918,-250.0,0.00016868,2]
[403184133,1769254243928,-250.0,0.00016868,2]
[403184134,1769254243937,-250.0,0.00016868,2]
[403184135,1769254243947,-201.000005,0.00016868,2]
[403184136,1769254243957,-1269.0,0.00016868,2]
[403184137,1769254243967,-1203.0,0.00016868,2]
[403184138,1769254243978,-916.0,0.00016868,2]
[403184139,1769254243989,-1333.0,0.00016868,2]
[403184140,1769254244000,-1408.0,0.00016868,2]
[403184141,1769254244012,-3476.0,0.00016868,2]
[403184142,1769254244023,-500.0,0.00016874,2]
[403184143,1769254244033,-158.81404097,0.00016879,2]
[403184144,1769254244043,-207.26,0.0001694,2]
[403184145,1769254244054,-151.0,0.00016965,2]
[403184146,1769254244063,-1500.0,0.00016968,2]
[403184147,1769254244076,-1500.0,0.00016968,2]
[403184148,1769254244087,-1500.0,0.00016968,2]